bitfinex/quotes_ETHUSD_20220202
["timestamp","ask_amount","ask_price","bid_price","bid_amount"]
[1643809048737,0.3,2789.5,2789.2,1.79252]
[1643809049133,0.3,2789.5,2789.3,0.3]
[1643809049634,1.1962284,2789.7,2789.3,0.3]
[1643809049834,1.1962284,2789.7,2789.2,2.09251]
[1643809050036,1.1962284,2789.7,2789.4,0.89625]
[1643809050436,1.1962284,2789.7,2789.1,2.226708]
[1643809050635,1.1962284,2789.7,2789.1,2.526708]
[1643809051336,1.1962284,2789.7,2789.6,0.1985093]
[1643809051537,2.71761093,2789.7,2789.6,0.1985093]
[1643809052581,2.71761093,2789.7,2789.4,0.89629]
[1643809052781,1.1962284,2789.7,2789.4,0.89629]
[1643809053787,1.1962284,2789.7,2789.6,0.21921956]
[1643809053985,0.43843912,2789.5,2789.4,0.89629]
[1643809054186,2.71758354,2789.7,2789.6,0.26634309]
[1643809054187,1.1962284,2789.7,2789.6,0.26634309]
[1643809054592,2.71760792,2789.7,2789.6,0.26634309]
[1643809054988,2.71760792,2789.7,2789.4,0.89629]
[1643809055189,1.1962284,2789.7,2789.4,0.89629]
[1643809056034,1.1962284,2789.7,2789.6,0.26768742]
[1643809056228,1.1962284,2789.7,2789.4,1.79258]
[1643809058635,1.521377,2789.6,2789.4,1.79258]
[1643809060484,1.1962284,2789.7,2789.4,1.79258]
[1643809060680,0.3,2789.7,2789.4,1.79258]
[1643809061285,1.52137476,2789.6,2789.4,1.79258]
[1643809061580,1.52137476,2789.6,2789.5,0.26638605]
[1643809061782,0.3,2789.7,2789.5,0.26638605]
[1643809061980,0.3,2789.7,2789.4,1.79258]
[1643809063083,0.3,2789.7,2789.5,0.2174549]
[1643809066138,0.3,2789.7,2789.5,0.5174549]
[1643809066539,0.3,2789.7,2789.5,0.2174549]
[1643809066735,0.3,2789.7,2789.5,0.5174549]
[1643809067981,1.52137908,2789.6,2789.5,0.5174549]
[1643809069791,0.1792,2790.2,2789.6,0.8961]
[1643809069988,1.52114369,2790.1,2789.6,2.89487989]
[1643809070191,1.52114369,2790.0,2789.6,2.86726]
[1643809070391,2.43436091,2790.4,2789.6,2.86726]
[1643809070392,1.52114369,2789.9,2789.6,2.86726]
[1643809070593,1.52114369,2789.8,2789.6,2.86726]
[1643809070790,0.83450689,2790.2,2789.6,2.86726]
[1643809071032,0.85085674,2790.5,2790.1,1.79211]
[1643809071236,1.79483572,2790.7,2790.1,2.09211]
[1643809071237,1.52109824,2790.4,2790.1,2.09211]
[1643809071439,1.52109824,2790.3,2790.1,1.79211]
[1643809071640,1.52109824,2790.2,2790.1,1.79211]
[1643809071846,1.52109824,2790.2,2790.1,0.89604]
[1643809072039,0.89361113,2790.2,2790.1,0.89604]
[1643809072240,0.89361113,2790.2,2790.0,1.79208]
[1643809072437,1.52109824,2790.1,2790.0,1.79208]
[1643809073239,0.1792,2790.4,2790.2,0.23378681]
[1643809073442,1.52113883,2790.3,2790.2,0.89614]
[1643809074040,1.52113883,2790.3,2790.0,1.06566772]
[1643809074239,0.72150787,2790.1,2790.0,1.06566772]
[1643809074640,2.2426467,2790.1,2790.0,1.06566772]
[1643809074884,1.52113883,2790.1,2790.0,1.06566772]
[1643809075383,1.52113883,2790.2,2789.9,1.79235]
[1643809075588,1.52113883,2790.2,2789.7,0.1792]
[1643809075589,0.85085674,2790.1,2789.7,0.1792]
[1643809075785,1.52113883,2790.0,2789.7,0.1792]
[1643809076185,0.80587782,2789.8,2789.7,0.1792]
[1643809076388,0.80587782,2789.8,2789.0,3.21474193]
[1643809076389,1.52113883,2789.8,2789.5,2.04839246]
[1643809076584,0.1792,2790.1,2789.5,2.04839246]
[1643809076585,1.52113883,2789.7,2789.5,2.04839246]
[1643809076784,1.52113883,2789.6,2789.5,2.04839246]
[1643809077385,2.36234287,2790.1,2789.6,0.89617]
[1643809077584,1.52121791,2790.0,2789.6,0.89617]
[1643809077786,1.52121791,2790.0,2789.6,1.79234]
[1643809077988,1.52121791,2790.0,2789.6,0.89617]
[1643809078187,1.52121791,2790.0,2789.7,0.89617]
[1643809079061,1.52121791,2790.0,2789.8,2.09228]
[1643809079263,1.52121791,2790.0,2789.9,0.12692224]
[1643809080261,2.20880496,2790.0,2789.7,0.12692224]
[1643809080461,2.41753831,2789.9,2789.7,0.12692224]
[1643809080663,1.52121791,2789.8,2789.7,0.12692224]
[1643809081663,1.52121791,2789.8,2789.7,0.36191771]
[1643809083788,1.52121791,2789.8,2789.7,0.12692224]
[1643809084993,1.52121791,2789.8,2789.7,0.38247658]
[1643809085190,1.52121791,2789.8,2789.7,0.12692224]
[1643809085691,1.52121791,2789.8,2789.6,0.12692224]
[1643809087233,1.52121791,2789.8,2789.6,1.91938224]
[1643809087435,1.52121791,2789.7,2789.6,1.91938224]
[1643809087633,1.52121791,2789.9,2789.6,1.91938224]
[1643809087831,1.52121791,2789.8,2789.6,1.91938224]
[1643809088236,1.52121791,2789.7,2789.6,2.81559224]
[1643809088440,0.85085674,2790.3,2789.7,0.12692224]
[1643809088637,0.85085674,2790.3,2790.2,0.21692048]
[1643809088938,0.85085674,2790.3,2790.1,0.12692224]
[1643809089138,0.1792,2790.3,2790.1,0.12692224]
[1643809089338,0.85075674,2790.5,2790.2,1.02295224]
[1643809089539,1.52106885,2790.4,2790.3,1.02293224]
[1643809089790,2.19272559,2790.4,2790.3,0.12692224]
[1643809090590,2.19272559,2790.4,2790.1,0.20742734]
[1643809090788,3.00748242,2790.4,2790.1,0.20742734]
[1643809090990,1.52106885,2790.3,2790.2,0.12692224]
[1643809092792,1.52106885,2790.3,2790.2,0.42692224]
[1643809092994,1.52106885,2790.3,2790.2,0.12692224]
[1643809094137,1.52106885,2790.3,2790.1,2.2959435]
[1643809095341,1.52106885,2790.3,2790.1,2.08851616]
[1643809095743,2.41724845,2790.3,2790.1,1.79204]
[1643809095941,1.52106885,2790.2,2790.1,1.79204]
[1643809097591,1.52106885,2790.3,2790.1,1.79204]
[1643809100793,1.52106885,2790.3,2790.1,2.98808]
[1643809101229,1.52106885,2790.3,2790.1,2.68808]
[1643809101430,1.52106885,2790.3,2790.1,2.98808]
[1643809102030,1.52106885,2790.3,2790.1,2.09204]
[1643809102730,1.52106885,2790.5,2790.1,2.09204]
[1643809102937,1.52106885,2790.4,2790.1,2.09204]
[1643809103231,1.52106885,2790.3,2790.1,2.98814]
[1643809103430,1.52106885,2790.2,2790.1,2.98814]
[1643809104639,1.52106885,2790.2,2790.1,3.8842]
[1643809104882,1.52106885,2790.2,2790.1,3.5842]
[1643809105080,1.52106885,2790.5,2790.1,3.5842]
[1643809105283,1.52106885,2790.4,2790.1,2.68814]
[1643809105487,1.52106885,2790.3,2790.1,2.68814]
[1643809105682,1.52106885,2790.2,2790.1,2.68814]
[1643809106088,0.89870722,2790.4,2790.1,2.68814]
[1643809106089,1.52106885,2790.3,2790.1,2.68814]
[1643809106285,1.52106885,2790.2,2790.1,2.68814]
[1643809106784,1.52106885,2790.3,2790.1,2.68814]
[1643809107991,1.52106885,2790.3,2790.2,2.04875641]
[1643809108641,0.00265032,2790.7,2790.3,0.89588]
[1643809108845,1.52349011,2790.7,2790.4,0.2124269]
[1643809109039,1.52083979,2790.6,2790.4,1.1083069]
[1643809109238,1.52083979,2790.6,2790.4,1.4083069]
[1643809109438,0.04035807,2790.5,2790.4,1.4083069]
[1643809109640,1.56119786,2790.5,2790.4,0.5124269]
[1643809109840,1.56119786,2790.5,2790.4,2.09176]
[1643809110041,1.56119786,2790.5,2790.3,1.79176]
[1643809110241,1.52083979,2790.4,2789.9,0.1791]
[1643809110441,1.52349011,2790.4,2789.9,0.1791]
[1643809111141,0.85532145,2790.0,2789.9,2.23846643]
[1643809111341,1.15532145,2790.0,2789.9,2.23846643]
[1643809111542,1.15532145,2790.0,2789.9,0.26705643]
[1643809111543,2.67616124,2790.0,2789.9,0.26705643]
[1643809111943,1.82083979,2790.0,2789.9,0.26705643]
[1643809112588,0.3,2790.0,2789.9,0.26705643]
[1643809112787,1.52098816,2790.0,2789.9,0.26705643]
[1643809113086,1.21402283,2790.3,2789.9,1.16308643]
[1643809113288,1.52093314,2790.2,2789.9,1.34228643]
[1643809113587,1.82093314,2790.2,2789.9,1.34228643]
[1643809113787,0.3,2790.2,2789.9,1.34228643]
[1643809113989,1.52091278,2790.1,2789.9,1.34228643]
[1643809114389,0.3,2790.1,2789.9,1.34228643]
[1643809114788,1.21402283,2790.3,2789.9,1.34228643]
[1643809114989,1.52092701,2790.2,2789.9,1.34228643]
[1643809115194,1.51979826,2790.2,2790.0,0.89603]
[1643809115389,1.81979826,2790.2,2790.0,0.89603]
[1643809115589,1.21402283,2790.3,2790.0,0.89603]
[1643809115796,1.21402283,2790.3,2790.0,2.68812]
[1643809116032,2.11010313,2790.3,2790.0,3.71624094]
[1643809116236,2.11010313,2790.3,2790.0,1.79209]
[1643809117036,2.11010313,2790.3,2790.0,0.89604]
[1643809117436,0.1792,2790.2,2789.5,1.97169]
[1643809117740,0.89632,2790.1,2789.5,1.79249]
[1643809117937,0.4792,2790.0,2789.5,1.79249]
[1643809118137,2.2718495,2790.0,2789.5,1.79249]
[1643809119141,0.8963248,2789.9,2789.5,1.79249]
[1643809119340,0.3,2789.8,2789.5,1.79249]
[1643809119788,2.2718495,2790.0,2789.5,1.79249]
[1643809120204,0.8962446,2789.9,2789.5,1.79249]
[1643809120589,0.3,2789.8,2789.5,1.79249]
[1643809121891,0.3,2789.8,2789.5,0.8962]
[1643809122093,0.01206254,2789.6,2789.3,0.00150679]
[1643809122292,0.1792,2789.6,2789.0,0.00150679]
[1643809122491,0.8962937,2789.7,2789.0,0.00150679]
[1643809122492,1.0754937,2789.7,2789.0,0.00150679]
[1643809122689,1.0754937,2789.7,2789.2,0.89641]
[1643809122889,1.0754937,2789.7,2789.6,0.2431476]
[1643809123190,0.8962937,2789.7,2789.6,0.2431476]
[1643809123649,0.8962937,2789.7,2789.3,0.00150679]
[1643809123852,0.1792,2789.6,2789.3,0.00150679]
[1643809124045,0.8964036,2789.5,2788.9,0.89639]
[1643809124247,0.8964036,2789.5,2788.7,0.18070679]
[1643809124248,0.3,2789.4,2789.0,0.1792]
[1643809124548,0.3,2789.4,2788.8,0.1792]
[1643809124746,0.7517751,2789.2,2789.0,0.19152216]
[1643809124946,1.0517751,2789.2,2789.0,0.19152216]
[1643809125146,1.0517751,2789.2,2789.0,1.08794216]
[1643809127588,0.3,2789.2,2789.0,1.08794216]
[1643809127789,0.8963611,2789.3,2789.0,1.08794216]
[1643809127991,0.3,2789.2,2789.0,1.08794216]
[1643809128805,0.3,2789.4,2789.0,1.08794216]
[1643809128995,1.16809,2789.4,2789.1,0.00150679]
[1643809129192,1.16809,2789.4,2789.1,0.89788679]
[1643809131431,0.3,2789.4,2789.1,0.89788679]
[1643809131637,0.1792,2789.5,2789.1,0.91709337]
[1643809131830,0.8962833,2789.6,2789.1,0.89788679]
[1643809132231,0.8962833,2789.6,2789.5,0.21828566]
[1643809132632,1.74303307,2789.6,2789.5,0.21828566]
[1643809132837,4.22223307,2789.6,2789.2,0.00150679]
[1643809133033,4.22223307,2789.6,2788.9,0.00150679]
[1643809133234,0.517,2789.5,2788.9,0.00150679]
[1643809133434,1.0758125,2789.4,2788.9,0.00150679]
[1643809133636,1.3758125,2789.4,2788.6,0.00150679]
[1643809133837,2.2724125,2789.4,2788.7,0.18918525]
[1643809134240,2.2724125,2789.4,2788.8,0.00150679]
[1643809134438,1.3758125,2789.4,2788.8,0.00150679]
[1643809135079,3.47987306,2789.3,2788.8,0.00150679]
[1643809135283,2.59730554,2789.2,2788.8,0.00150679]
[1643809135479,1.82157104,2789.1,2788.8,0.00150679]
[1643809135680,0.3,2789.1,2788.8,0.00150679]
[1643809136684,0.8965447,2789.0,2788.6,0.89805679]
[1643809137085,1.1965447,2789.0,2788.6,0.89805679]
[1643809137385,1.1965447,2789.0,2788.8,0.21047166]
[1643809138185,1.1965447,2789.0,2788.7,0.89804679]
[1643809139343,1.1965447,2789.0,2788.7,1.11491062]
[1643809141946,0.3,2789.0,2788.7,1.11491062]
[1643809142380,0.3,2789.1,2788.7,1.11491062]
[1643809142580,0.3,2789.1,2788.7,1.29411062]
[1643809143988,0.3,2789.1,2788.7,1.07724679]
[1643809144189,0.3,2789.1,2788.7,0.18070679]
[1643809144390,0.8965923,2789.0,2788.7,0.18070679]
[1643809144691,0.8965923,2789.0,2788.7,0.00150679]
[1643809145699,0.89509778,2789.0,2788.7,0.00150679]
[1643809146139,1.52163744,2788.9,2788.7,0.00150679]
[1643809146341,1.52163744,2788.9,2788.5,0.1792]
[1643809146342,3.31520944,2788.9,2788.5,0.18070679]
[1643809146538,2.9903482,2788.9,2788.5,0.18070679]
[1643809146940,0.72090332,2788.7,2788.5,0.18070679]
[1643809147140,0.72090332,2788.7,2788.5,0.00150679]
[1643809147344,0.72090332,2788.7,2788.3,0.25464361]
[1643809147345,1.02090332,2788.7,2788.3,0.25464361]
[1643809147543,1.02090332,2788.7,2788.3,0.00150679]
[1643809149154,1.91764242,2788.7,2788.3,0.00150679]
[1643809152889,1.91764242,2788.7,2788.5,0.21533128]
[1643809152890,0.8967391,2788.7,2788.5,0.21533128]
[1643809153091,0.1792,2789.2,2788.5,0.2274331]
[1643809153392,3.0241902,2789.6,2788.6,0.1792]
[1643809153393,1.5215575,2789.1,2788.6,0.1792]
[1643809153644,3.44622,2789.5,2788.5,0.40813989]
[1643809153843,0.67886858,2788.9,2788.5,0.40813989]
[1643809154041,0.67886858,2788.9,2788.6,0.00150679]
[1643809154242,0.97886858,2788.9,2788.6,0.00150679]
[1643809155047,0.3,2788.9,2788.6,0.00150679]
[1643809155439,1.1965667,2789.1,2788.6,0.00150679]
[1643809156242,0.86704318,2789.0,2788.6,0.00150679]
[1643809159498,2.66043278,2789.0,2788.6,0.00150679]
[1643809161539,0.8965667,2789.1,2788.6,2.00150679]
[1643809161739,3.57506521,2790.0,2788.6,3.5181277]
[1643809161740,1.0755758,2789.6,2788.6,3.5181277]
[1643809161940,1.52141015,2789.5,2788.7,0.00150679]
[1643809162141,0.1792,2789.7,2788.8,0.1792]
[1643809162142,1.52141015,2789.4,2788.8,0.1792]
[1643809162340,1.52141015,2789.3,2788.7,0.18070679]
[1643809162539,1.52141015,2789.2,2788.8,0.00150679]
[1643809162741,2.43667388,2789.1,2788.8,0.00150679]
[1643809162944,1.52141015,2789.0,2788.8,0.00150679]
[1643809163143,1.52141015,2789.0,2788.5,0.18070679]
[1643809163340,1.82141015,2789.0,2788.6,0.26209214]
[1643809163543,0.3,2789.0,2788.7,0.1792]
[1643809163745,2.11187603,2789.1,2788.7,0.1792]
[1643809163945,1.52152093,2789.0,2788.7,0.1792]
[1643809166188,1.70072093,2789.0,2788.7,0.1792]
[1643809166388,2.41824033,2788.9,2788.7,0.1792]
[1643809166588,1.52152093,2788.8,2788.7,0.1792]
[1643809168856,1.52152093,2788.8,2788.6,0.26936601]
[1643809169054,1.52152093,2788.8,2788.6,0.26785922]
[1643809169555,0.3,2788.9,2788.6,0.26785922]
[1643809169754,1.1965789,2789.1,2788.6,0.26785922]
[1643809169956,1.5215199,2789.0,2788.6,0.26785922]
[1643809170156,1.5215199,2789.0,2788.6,0.26936601]
[1643809171158,1.5215199,2789.0,2788.6,1.16594601]
[1643809172590,1.52154054,2788.9,2788.6,1.16594601]
[1643809172792,1.52154054,2788.8,2788.6,1.16594601]
[1643809172993,1.1965789,2789.1,2788.6,1.16594601]
[1643809173294,1.52154369,2789.0,2788.6,1.16594601]
[1643809176237,1.52154369,2789.0,2788.7,0.47935]
[1643809176442,1.52154369,2789.2,2788.8,2.517]
[1643809176639,0.67165674,2790.0,2789.0,0.02180548]
[1643809176838,1.52124492,2789.9,2789.0,0.517]
[1643809177037,1.52124492,2789.9,2788.9,2.35825]
[1643809177038,1.52124492,2789.8,2788.9,2.35825]
[1643809177242,1.52124492,2789.7,2789.0,0.89511519]
[1643809177537,0.67549865,2789.9,2789.0,0.89511519]
[1643809177538,1.52124492,2789.6,2789.0,1.19511519]
[1643809177738,1.52124492,2789.7,2789.0,2.09142519]
[1643809177937,1.52124492,2789.6,2789.0,1.37551]
[1643809178143,1.52124492,2789.5,2789.0,0.4792]
[1643809178344,1.52124492,2789.4,2788.9,1.3581]
[1643809178541,0.67549865,2789.5,2788.9,1.3581]
[1643809178743,0.67549865,2789.5,2788.9,1.6581]
[1643809178944,2.00044492,2789.5,2788.9,1.4789]
[1643809179145,1.52124492,2789.4,2789.0,0.25695554]
[1643809180192,1.52124492,2789.4,2789.0,1.15341554]
[1643809181392,1.52010449,2789.4,2789.0,1.15341554]
[1643809181592,0.3,2789.5,2789.0,1.45341554]
[1643809181791,0.1792,2789.6,2789.0,1.45341554]
[1643809181993,0.1792,2789.6,2789.0,1.15341554]
[1643809182195,0.1792,2789.6,2789.5,0.19660756]
[1643809182392,0.1792,2789.6,2789.0,0.89646]
[1643809183550,1.0756806,2789.6,2789.3,0.24882648]
[1643809183745,0.3,2789.5,2788.8,0.00150679]
[1643809183948,0.67549865,2789.4,2788.8,0.00150679]
[1643809184345,0.97549865,2789.5,2788.8,0.00150679]
[1643809184543,0.8965355,2789.4,2788.8,0.00150679]
[1643809184745,0.3,2789.5,2789.3,0.23845572]
[1643809185244,1.15469865,2789.6,2789.3,0.23845572]
[1643809186049,2.05117165,2789.6,2789.3,0.23845572]
[1643809186245,0.3,2789.5,2789.3,0.23845572]
[1643809189895,0.1792,2789.6,2789.3,0.23845572]
[1643809190096,1.17843865,2789.7,2789.3,0.23845572]
[1643809192340,2.07485795,2789.7,2789.3,0.23845572]
[1643809192740,0.67549865,2789.6,2789.0,2.26543]
[1643809192941,0.67549865,2789.6,2789.0,1.369]
[1643809193141,0.67549865,2789.6,2789.0,1.1898]
[1643809193344,0.3,2789.5,2789.0,1.1898]
[1643809193747,0.97549865,2789.5,2789.0,1.1898]
[1643809194143,1.196546,2789.5,2789.0,1.1898]
[1643809194344,0.896546,2789.5,2789.0,1.1898]
[1643809194546,2.46859055,2789.6,2788.9,0.1792]
[1643809194547,0.67549865,2789.3,2788.9,0.1792]
[1643809194795,0.97549865,2789.2,2788.8,0.00150679]
[1643809194993,0.97549865,2789.2,2788.6,0.00150679]
[1643809195596,2.09962,2789.4,2788.8,0.20753976]
[1643809195597,0.67549865,2789.4,2788.8,0.20753976]
[1643809195799,0.1792,2789.5,2788.4,0.19181783]
[1643809195800,0.67549865,2789.5,2789.3,0.26223667]
[1643809196199,0.85469865,2789.6,2789.3,0.26223667]
[1643809196401,0.85469865,2789.6,2788.7,1.16980679]
[1643809196599,0.85469865,2789.6,2788.8,0.00150679]
[1643809196799,1.15469865,2789.6,2788.8,0.00150679]
[1643809196998,1.15469865,2789.6,2788.9,0.89642]
[1643809197202,1.15469865,2789.6,2788.9,1.79283]
[1643809197400,0.97549865,2789.6,2789.4,0.2163398]
[1643809198200,0.3,2789.5,2789.4,0.2163398]
[1643809198753,0.97549865,2789.5,2789.0,1.79278]
[1643809198961,0.97549865,2789.5,2788.8,1.97349679]
[1643809199354,0.3,2789.5,2788.8,1.97349679]
[1643809199553,2.76839665,2789.6,2788.8,1.97349679]
[1643809200153,0.896449,2789.4,2789.3,0.20386816]
[1643809200352,1.196449,2789.4,2789.3,0.20386816]
[1643809200552,1.196449,2789.4,2788.8,1.97349679]
[1643809201560,1.5214688,2789.3,2788.8,1.97349679]
[1643809201952,1.5214688,2789.3,2788.9,0.22026994]
[1643809202799,1.5214688,2789.3,2788.9,1.11673994]
[1643809206941,1.5214688,2789.3,2788.9,2.01322994]
[1643809207949,1.5214688,2789.3,2789.0,0.3]
[1643809208148,1.5214688,2789.3,2789.1,2.0467904]
[1643809208347,1.5214688,2789.7,2789.2,0.1792]
[1643809208546,0.67549865,2789.9,2789.6,0.26438532]
[1643809208751,2.49696177,2789.8,2789.2,0.1792]
[1643809208952,1.52146312,2789.7,2789.2,0.1792]
[1643809209153,1.52146312,2789.7,2789.1,1.97174]
[1643809209356,2.41781772,2789.7,2789.3,1.79265]
[1643809209552,1.52146312,2789.6,2789.3,1.79265]
[1643809209790,1.82146312,2789.6,2789.4,0.25211289]
[1643809209993,1.52146312,2789.5,2789.4,0.25211289]
[1643809210191,1.82146312,2789.5,2789.4,0.25211289]
[1643809210791,1.82146312,2789.5,2789.3,0.89633]
[1643809210994,1.52146312,2789.4,2789.2,1.79264]
[1643809211795,1.52146312,2789.4,2789.1,1.97174]
[1643809211999,1.52146312,2789.4,2789.3,0.23949679]
[1643809214047,1.52146312,2789.4,2789.3,2.37905048]
[1643809214343,0.00265032,2790.0,2789.8,0.23350592]
[1643809214741,0.00265032,2790.0,2789.5,2.09231]
[1643809214742,0.67814897,2790.0,2789.5,1.79231]
[1643809214944,0.67549865,2789.9,2789.4,2.25847]
[1643809215145,0.67549865,2789.9,2789.4,1.183]
[1643809215345,0.67549865,2789.8,2789.4,1.183]
[1643809215543,2.19679727,2789.8,2789.4,1.183]
[1643809215746,1.52129862,2789.7,2789.4,1.183]
[1643809215945,1.52129862,2789.7,2789.5,0.21697203]
[1643809216144,1.52129862,2789.7,2789.2,1.7925]
[1643809216745,2.19679727,2789.7,2789.2,1.7925]
[1643809217148,2.41763652,2789.6,2789.3,0.20435873]
[1643809217393,1.52129862,2789.5,2789.1,0.3]
[1643809217593,1.82129862,2789.5,2789.1,0.3]
[1643809217793,1.52129862,2789.4,2789.1,0.3]
[1643809218192,1.52129862,2789.3,2789.1,0.3]
[1643809218396,2.41768112,2789.3,2789.1,0.3]
[1643809218595,1.82129862,2789.2,2789.1,0.54464539]
[1643809221846,1.82129862,2789.2,2789.1,0.24464539]
[1643809222854,1.59519762,2789.2,2789.1,0.54464539]
[1643809223049,1.59519762,2789.2,2789.1,0.24464539]
[1643809223655,1.59519762,2789.2,2789.1,0.54464539]
[1643809226696,1.59519762,2789.2,2789.1,1.54279816]
[1643809227899,0.8963237,2789.5,2789.1,3.66905899]
[1643809228101,3.10982072,2789.8,2789.3,0.99815277]
[1643809228102,2.61352207,2789.8,2789.3,0.99815277]
[1643809228301,2.43432207,2789.8,2789.4,0.99815277]
[1643809228545,2.43432207,2789.8,2789.5,0.1792]
[1643809228746,0.85734897,2790.2,2789.7,0.99815277]
[1643809228953,0.85734897,2790.2,2789.8,0.517]
[1643809228954,0.67814897,2790.2,2789.8,0.517]
[1643809229145,0.67814897,2790.2,2789.9,0.517]
[1643809229146,0.1792,2790.1,2789.9,0.517]
[1643809229346,1.0753303,2790.1,2789.9,0.517]
[1643809229546,0.3,2790.0,2789.9,0.517]
[1643809231649,0.3,2790.0,2789.8,0.3]
[1643809231848,0.3,2790.0,2789.7,0.20575937]
[1643809232050,1.19890662,2790.0,2789.3,2.3671]
[1643809232291,1.19890662,2790.0,2789.4,2.9293313]
[1643809232694,1.19890662,2790.0,2789.3,1.84645]
[1643809232898,1.19890662,2790.0,2789.4,1.94256626]
[1643809233093,1.19890662,2790.0,2789.6,1.14130169]
[1643809233295,1.19890662,2790.0,2789.6,2.03748169]
[1643809233495,1.19890662,2790.0,2789.6,0.24513169]
[1643809236250,1.1962563,2790.0,2789.6,0.24513169]
[1643809236451,0.3,2790.0,2789.6,3.93999909]
[1643809236651,0.3,2790.1,2789.6,3.93999909]
[1643809236851,0.00265032,2790.0,2789.6,4.83616909]
[1643809237249,0.00265032,2790.0,2789.6,2.93357169]
[1643809237452,0.00265032,2790.1,2789.6,2.93357169]
[1643809238052,0.8961595,2790.0,2789.6,4.86743412]
[1643809238251,1.1961595,2790.0,2789.6,4.86743412]
[1643809239054,0.00265032,2790.1,2789.7,1.97157]
[1643809239255,0.00265032,2790.1,2789.8,3.19592]
[1643809239453,2.43432207,2790.6,2789.8,3.19592]
[1643809239454,0.00265032,2790.2,2789.9,0.517]
[1643809239893,0.00265032,2790.2,2790.1,1.27831007]
[1643809240093,0.00265032,2790.5,2790.1,1.92892154]
[1643809240297,0.00265032,2790.5,2790.1,3.07512154]
[1643809240499,0.00265032,2790.5,2790.1,1.87926154]
[1643809240701,0.85459865,2790.8,2790.1,2.17926154]
[1643809240702,0.85724897,2790.8,2790.1,2.17926154]
[1643809240896,0.48175032,2790.8,2790.6,0.22842176]
[1643809241097,2.69149492,2790.7,2790.1,1.9632]
[1643809241297,1.0752242,2790.6,2790.1,1.9632]
[1643809241495,1.11615069,2790.6,2790.1,1.9632]
[1643809241696,0.04035807,2790.5,2790.2,0.89602]
[1643809241897,0.04300839,2790.5,2790.2,0.89602]
[1643809242296,0.04300839,2790.5,2790.3,0.21049814]
[1643809242499,0.04035807,2790.5,2790.3,0.21049814]
[1643809242697,0.04035807,2790.5,2790.2,0.89602]
[1643809243300,0.04035807,2790.5,2790.2,1.79201]
[1643809244351,0.04035807,2790.5,2790.2,2.05776605]
[1643809244749,0.04035807,2790.5,2790.2,1.16177605]
[1643809244946,0.04035807,2790.5,2790.2,0.26575605]
[1643809245952,0.04035807,2790.5,2790.2,1.16171605]
[1643809246948,0.04035807,2790.5,2790.2,3.47044605]
[1643809247149,0.04035807,2790.5,2790.2,1.67871605]
[1643809247996,0.04300839,2790.5,2790.2,1.67871605]
[1643809249401,0.04300839,2790.5,2790.2,1.67873605]
[1643809250000,0.04300839,2790.5,2790.2,0.78275605]
[1643809250200,0.04035807,2790.5,2790.2,0.78275605]
[1643809250402,0.04300762,2790.5,2790.2,0.78275605]
[1643809252044,0.04300762,2790.5,2790.3,1.94053537]
[1643809252246,0.04035807,2790.5,2790.3,0.89595]
[1643809253245,0.04035807,2790.5,2790.4,5.16104582]
[1643809253448,0.00264955,2790.9,2790.5,6.3]
[1643809253656,0.00264955,2790.9,2790.6,2.20414735]
[1643809253851,0.00264955,2790.9,2790.7,0.18968399]
[1643809254051,1.52316688,2791.4,2790.8,0.517]
[1643809254251,1.52051733,2791.3,2790.8,0.6961]
[1643809254552,0.00264955,2791.4,2790.8,2.33383556]
[1643809254793,0.00264955,2791.4,2790.9,1.19567]
[1643809254991,0.00264955,2791.4,2790.9,2.60834]
[1643809255194,0.00264955,2791.4,2790.9,3.60834]
[1643809255395,1.52315598,2791.4,2790.9,3.60834]
[1643809255590,1.52315598,2791.4,2791.0,2.03134796]
[1643809255792,1.52315598,2791.4,2791.1,0.517]
[1643809255992,0.3,2791.5,2791.1,1.41262]
[1643809256200,0.30264955,2791.7,2791.2,0.18974496]
[1643809256395,0.30264955,2791.7,2791.6,0.20151844]
[1643809256596,0.1791,2791.8,2791.6,0.71851844]
[1643809256597,0.18174955,2791.8,2791.6,0.71851844]
[1643809256798,0.00264955,2791.8,2791.7,1.89307609]
[1643809257001,0.00264955,2791.8,2791.7,2.867]
[1643809257198,1.5203242,2792.0,2791.7,1.53508241]
[1643809257399,1.5203242,2792.0,2791.7,1.517]
[1643809257696,1.5203242,2792.0,2791.5,3.22691754]
[1643809257697,0.81627764,2791.8,2791.5,0.1789]
[1643809257896,0.81627764,2791.8,2791.1,3.2793]
[1643809257897,1.5203242,2791.7,2791.1,3.2793]
[1643809258096,1.5203242,2791.7,2791.1,0.1791]
[1643809258547,0.00264955,2791.6,2791.4,0.22645207]
[1643809259248,1.5203242,2791.7,2791.4,0.22645207]
[1643809260148,4.9159482,2791.7,2791.4,0.22645207]
[1643809260348,1.5203242,2791.6,2791.4,1.12204207]
[1643809260547,1.8203242,2791.6,2791.4,1.12204207]
[1643809260748,0.3,2791.6,2791.4,0.22645207]
[1643809260948,2.8,2791.7,2791.4,0.22645207]
[1643809261351,1.52047254,2791.6,2791.2,0.517]
[1643809261548,1.82312209,2791.6,2791.0,0.1791]
[1643809261750,1.82312209,2791.6,2790.9,0.1791]
[1643809261751,1.52047254,2791.5,2790.9,0.1791]
[1643809261949,1.52047254,2791.5,2790.8,1.1554]
[1643809262149,0.00264955,2791.4,2790.8,1.1554]
[1643809262399,0.18174955,2791.4,2790.8,1.1554]
[1643809262602,0.8849693,2791.1,2790.8,1.39829092]
[1643809262798,1.1849693,2791.1,2790.8,0.24289092]
[1643809262999,0.3,2791.1,2790.8,0.24289092]
[1643809263400,0.30264955,2791.3,2790.8,2.93016092]
[1643809263607,1.52068216,2791.2,2790.8,2.93016092]
[1643809263805,0.3,2791.5,2790.8,2.93016092]
[1643809264008,0.67930989,2791.3,2790.8,2.93016092]
[1643809264204,1.52068766,2791.2,2790.8,2.93016092]
[1643809264809,0.98195944,2791.3,2790.8,2.93016092]
[1643809265007,0.30264955,2791.3,2790.8,1.13864092]
[1643809265207,0.48174955,2791.6,2790.8,3.05220024]
[1643809265407,1.52055903,2791.5,2791.4,0.23519694]
[1643809265606,1.52055903,2791.5,2791.1,0.517]
[1643809265806,0.00264955,2791.4,2791.1,0.517]
[1643809266045,0.77628339,2791.4,2791.1,0.517]
[1643809266243,1.52055903,2791.3,2791.1,0.517]
[1643809267049,1.52055903,2791.3,2791.2,0.20400633]
[1643809267249,0.3,2791.4,2791.2,0.20400633]
[1643809267650,0.18174955,2791.6,2791.2,0.20400633]
[1643809267651,0.48174955,2791.6,2791.2,0.20400633]
[1643809267849,1.52058542,2791.5,2791.2,0.20400633]